[Event "Late-Titled-Tuesday-Blitz-March-19-2024"]
[Site "Chess.com"]
[Date "2024.03.19"]
[Round "6"]
[White "hblanco"]
[Black "Lion-Al-Messi"]
[Result "0-1"]
[WhiteElo "2688"]
[BlackElo "2590"]
[TimeControl "180+1"]
[EndTime "15:06:00 PDT"]
[Termination "Lion-Al-Messi won by resignation"]

1. e4 {[%clk 0:03:00.9]} 1... e6 {[%clk 0:02:59.5]} 2. d4 {[%clk 0:03:00.7]}
2... d5 {[%clk 0:02:59.8]} 3. Nd2 {[%clk 0:03:01.3]} 3... c5 {[%clk 0:02:59.1]}
4. Ngf3 {[%clk 0:03:01.5]} 4... cxd4 {[%clk 0:02:59.1]} 5. Nxd4 {[%clk
0:03:01.6]} 5... Nf6 {[%clk 0:02:58.2]} 6. e5 {[%clk 0:02:41.9]} 6... Nfd7
{[%clk 0:02:57.7]} 7. f4 {[%clk 0:02:40.2]} 7... Nc6 {[%clk 0:02:57.5]} 8. N2f3
{[%clk 0:02:40.1]} 8... Bc5 {[%clk 0:02:52.8]} 9. c3 {[%clk 0:02:39.1]} 9... O-O
{[%clk 0:02:50.9]} 10. Be3 {[%clk 0:02:33.3]} 10... Qe7 {[%clk 0:02:37.9]} 11.
Bb5 {[%clk 0:02:25]} 11... Ndb8 {[%clk 0:02:13.7]} 12. O-O {[%clk 0:02:17.1]}
12... a6 {[%clk 0:02:13.2]} 13. Bd3 {[%clk 0:02:16.8]} 13... f6 {[%clk
0:02:09.5]} 14. Qc2 {[%clk 0:02:07.4]} 14... f5 {[%clk 0:02:06.9]} 15. b4 {[%clk
0:01:58.3]} 15... Ba7 {[%clk 0:02:06]} 16. a4 {[%clk 0:01:58]} 16... Nd7 {[%clk
0:01:59.2]} 17. Bf2 {[%clk 0:01:54]} 17... Nxd4 {[%clk 0:01:37.9]} 18. Nxd4
{[%clk 0:01:51.5]} 18... Nb6 {[%clk 0:01:31.8]} 19. Qe2 {[%clk 0:01:41.1]} 19...
Bd7 {[%clk 0:01:27.9]} 20. a5 {[%clk 0:01:39.1]} 20... Nc8 {[%clk 0:01:26.6]}
21. Nb3 {[%clk 0:01:34.1]} 21... Bxf2+ {[%clk 0:01:23.9]} 22. Qxf2 {[%clk
0:01:35]} 22... Na7 {[%clk 0:01:23.7]} 23. Qc5 {[%clk 0:01:34]} 23... Rfe8
{[%clk 0:01:20]} 24. Qxe7 {[%clk 0:01:33.3]} 24... Rxe7 {[%clk 0:01:20.9]} 25.
Kf2 {[%clk 0:01:31.7]} 25... Bb5 {[%clk 0:01:20.9]} 26. Ke3 {[%clk 0:01:32.1]}
26... Rc7 {[%clk 0:01:18.7]} 27. Nc5 {[%clk 0:01:27.3]} 27... Kf7 {[%clk
0:01:16]} 28. h3 {[%clk 0:01:26.5]} 28... Rac8 {[%clk 0:01:00]} 29. Bxb5 {[%clk
0:01:17.9]} 29... Nxb5 {[%clk 0:00:59.5]} 30. Kd3 {[%clk 0:01:18.8]} 30... Rxc5
{[%clk 0:00:53.8]} 31. bxc5 {[%clk 0:01:19.7]} 31... Rxc5 {[%clk 0:00:54.2]} 32.
Rfc1 {[%clk 0:01:19.1]} 32... Rc4 {[%clk 0:00:53.6]} 33. g3 {[%clk 0:01:19.3]}
33... h6 {[%clk 0:00:51.9]} 34. Rab1 {[%clk 0:01:18.9]} 34... Ra4 {[%clk
0:00:45.3]} 35. Ra1 {[%clk 0:01:17]} 35... Rc4 {[%clk 0:00:44.3]} 36. Rab1
{[%clk 0:00:25.3]} 36... Ra4 {[%clk 0:00:44.1]} 37. Rxb5 {[%clk 0:00:11.7]}
37... axb5 {[%clk 0:00:43.2]} 38. Rb1 {[%clk 0:00:12.6]} 38... Rxa5 {[%clk
0:00:42.3]} 39. Rb4 {[%clk 0:00:12.6]} 39... Ke7 {[%clk 0:00:39.1]} 40. Kd4
{[%clk 0:00:13]} 40... Ra4 {[%clk 0:00:37.9]} 41. Kc5 {[%clk 0:00:12.4]} 41...
Rxb4 {[%clk 0:00:23.6]} 42. Kxb4 {[%clk 0:00:13.3]} 42... Kd7 {[%clk 0:00:22.1]}
43. Kxb5 {[%clk 0:00:13.5]} 43... Kc7 {[%clk 0:00:21.6]} 44. Kc5 {[%clk
0:00:13.5]} 44... b6+ {[%clk 0:00:21.7]} 45. Kb5 {[%clk 0:00:13.6]} 45... Kb7
{[%clk 0:00:21.1]} 46. Kb4 {[%clk 0:00:07.6]} 46... Kc6 {[%clk 0:00:20.8]} 47.
g4 {[%clk 0:00:05.5]} 47... g6 {[%clk 0:00:17.2]} 48. Ka3 {[%clk 0:00:02.1]}
48... Kc5 {[%clk 0:00:16.1]} 49. Kb3 {[%clk 0:00:03]} 49... b5 {[%clk
0:00:15.9]} 50. Kb2 {[%clk 0:00:02]} 50... Kc4 {[%clk 0:00:15.9]} 51. Kc2 {[%clk
0:00:02.9]} 51... d4 {[%clk 0:00:15.1]} 52. cxd4 {[%clk 0:00:02.9]} 52... Kxd4
{[%clk 0:00:16]} 53. g5 {[%clk 0:00:02.8]} 53... hxg5 {[%clk 0:00:13.9]} 0-1

[Event "Late-Titled-Tuesday-Blitz-March-19-2024"]
[Site "Chess.com"]
[Date "2024.03.19"]
[Round "6"]
[White "Sanan_Sjugirov"]
[Black "KNVB"]
[Result "1-0"]
[WhiteElo "3006"]
[BlackElo "2803"]
[TimeControl "180+1"]
[EndTime "15:06:01 PDT"]
[Termination "Sanan_Sjugirov won by resignation"]

1. e4 {[%clk 0:03:00.9]} 1... e6 {[%clk 0:02:54.2]} 2. d4 {[%clk 0:03:00.7]}
2... d5 {[%clk 0:02:54.7]} 3. Nc3 {[%clk 0:03:00.8]} 3... Bb4 {[%clk 0:02:53.5]}
4. e5 {[%clk 0:02:58.2]} 4... Ne7 {[%clk 0:02:52.5]} 5. Bd2 {[%clk 0:02:57.1]}
5... b6 {[%clk 0:02:43.6]} 6. a3 {[%clk 0:02:51.5]} 6... Bxc3 {[%clk 0:02:43.1]}
7. Bxc3 {[%clk 0:02:52.4]} 7... Ba6 {[%clk 0:02:43.1]} 8. Bxa6 {[%clk
0:02:51.9]} 8... Nxa6 {[%clk 0:02:44]} 9. Bd2 {[%clk 0:02:51.2]} 9... c5 {[%clk
0:02:36.2]} 10. c3 {[%clk 0:02:51.4]} 10... Qd7 {[%clk 0:02:36.9]} 11. Nf3
{[%clk 0:02:41.3]} 11... Qb5 {[%clk 0:02:30.7]} 12. Rb1 {[%clk 0:02:25.7]} 12...
Qd3 {[%clk 0:02:23.3]} 13. Rc1 {[%clk 0:02:24.4]} 13... O-O {[%clk 0:01:50.1]}
14. Qe2 {[%clk 0:02:22.7]} 14... Qxe2+ {[%clk 0:01:48.1]} 15. Kxe2 {[%clk
0:02:23.6]} 15... c4 {[%clk 0:01:37.7]} 16. h4 {[%clk 0:02:21.8]} 16... h5
{[%clk 0:01:35.3]} 17. Rcg1 {[%clk 0:02:20]} 17... f6 {[%clk 0:01:09.6]} 18.
exf6 {[%clk 0:02:19.8]} 18... gxf6 {[%clk 0:01:09]} 19. Bh6 {[%clk 0:02:01.8]}
19... Rf7 {[%clk 0:00:37.6]} 20. Kd2 {[%clk 0:01:52.2]} 20... Rh7 {[%clk
0:00:31.9]} 21. Bf4 {[%clk 0:01:51.8]} 21... Kf7 {[%clk 0:00:30.8]} 22. Re1
{[%clk 0:01:47.8]} 22... Rg7 {[%clk 0:00:25.3]} 23. g3 {[%clk 0:01:46.2]} 23...
Ng6 {[%clk 0:00:18.7]} 24. Bh6 {[%clk 0:01:37.3]} 24... Rh7 {[%clk 0:00:16]} 25.
Be3 {[%clk 0:01:37.9]} 25... Nb8 {[%clk 0:00:14.7]} 26. Re2 {[%clk 0:01:35]}
26... Nc6 {[%clk 0:00:12.8]} 27. Rhe1 {[%clk 0:01:35.6]} 27... Re8 {[%clk
0:00:10.5]} 28. Kc2 {[%clk 0:01:33.9]} 28... Nce7 {[%clk 0:00:07.5]} 29. a4
{[%clk 0:01:28.6]} 29... Nf5 {[%clk 0:00:06.9]} 30. Bc1 {[%clk 0:01:27.9]} 30...
Rhh8 {[%clk 0:00:05.7]} 31. b3 {[%clk 0:01:21.3]} 31... cxb3+ {[%clk 0:00:06.6]}
32. Kxb3 {[%clk 0:01:22.1]} 32... Ng7 {[%clk 0:00:01.4]} 33. Ba3 {[%clk
0:01:20.7]} 33... Rc8 {[%clk 0:00:01.9]} 34. Nd2 {[%clk 0:01:16.1]} 34... Rc6
{[%clk 0:00:02.1]} 35. c4 {[%clk 0:01:11.8]} 35... dxc4+ {[%clk 0:00:03]} 36.
Nxc4 {[%clk 0:01:12.2]} 36... Nf5 {[%clk 0:00:01.8]} 37. Bb2 {[%clk 0:00:56]}
37... Rhc8 {[%clk 0:00:02]} 38. Nd2 {[%clk 0:00:45.2]} 38... Nge7 {[%clk
0:00:01.8]} 39. Ne4 {[%clk 0:00:36.7]} 39... Nd5 {[%clk 0:00:02.1]} 40. f3
{[%clk 0:00:37.5]} 40... Rc4 {[%clk 0:00:01.4]} 41. g4 {[%clk 0:00:38]} 41...
hxg4 {[%clk 0:00:01.9]} 42. fxg4 {[%clk 0:00:38.9]} 42... Nxd4+ {[%clk
0:00:02.7]} 43. Bxd4 {[%clk 0:00:39.5]} 43... Rxd4 {[%clk 0:00:03.4]} 44. Nd6+
{[%clk 0:00:40.1]} 44... Ke7 {[%clk 0:00:04.1]} 45. Nxc8+ {[%clk 0:00:40.2]}
45... Kd7 {[%clk 0:00:03.3]} 46. Nxa7 {[%clk 0:00:40.6]} 46... e5 {[%clk
0:00:02.5]} 47. Nb5 {[%clk 0:00:40.1]} 47... Rb4+ {[%clk 0:00:02.2]} 48. Ka3
{[%clk 0:00:40.3]} 48... Rxg4 {[%clk 0:00:03.1]} 49. Rd2 {[%clk 0:00:40.3]}
49... Ke6 {[%clk 0:00:03.3]} 50. Red1 {[%clk 0:00:40.5]} 50... Ne3 {[%clk
0:00:02.6]} 51. Rd6+ {[%clk 0:00:40.2]} 51... Kf5 {[%clk 0:00:02.7]} 52. Rc1
{[%clk 0:00:34.7]} 52... Nc4+ {[%clk 0:00:02.5]} 53. Rxc4 {[%clk 0:00:35.3]}
53... Rxc4 {[%clk 0:00:03.4]} 54. Rxb6 {[%clk 0:00:35.7]} 54... Rxh4 {[%clk
0:00:03.2]} 55. a5 {[%clk 0:00:36.1]} 55... Rh8 {[%clk 0:00:02.8]} 56. a6 {[%clk
0:00:36.5]} 56... e4 {[%clk 0:00:03]} 57. a7 {[%clk 0:00:36.8]} 57... Ra8 {[%clk
0:00:03.7]} 58. Rb8 {[%clk 0:00:37.1]} 58... Rxa7+ {[%clk 0:00:04.2]} 59. Nxa7
{[%clk 0:00:38]} 59... e3 {[%clk 0:00:04.6]} 60. Re8 {[%clk 0:00:38.2]} 60...
Kf4 {[%clk 0:00:04.9]} 61. Kb3 {[%clk 0:00:38.7]} 61... Kf3 {[%clk 0:00:05.6]}
62. Kc2 {[%clk 0:00:38.8]} 62... f5 {[%clk 0:00:06.5]} 63. Nc6 {[%clk
0:00:38.6]} 63... f4 {[%clk 0:00:06.9]} 64. Nd4+ {[%clk 0:00:39.3]} 64... Kf2
{[%clk 0:00:07.4]} 65. Kd3 {[%clk 0:00:40]} 65... f3 {[%clk 0:00:05.2]} 66. Nxf3
{[%clk 0:00:40]} 66... e2 {[%clk 0:00:05.3]} 1-0

[Event "Late-Titled-Tuesday-Blitz-March-19-2024"]
[Site "Chess.com"]
[Date "2024.03.19"]
[Round "6"]
[White "SoltaniciR"]
[Black "Yaacovn"]
[Result "1-0"]
[WhiteElo "2651"]
[BlackElo "2859"]
[TimeControl "180+1"]
[EndTime "15:06:01 PDT"]
[Termination "SoltaniciR won on time"]

1. e4 {[%clk 0:02:55.8]} 1... c6 {[%clk 0:02:58.2]} 2. c4 {[%clk 0:02:54.8]}
2... d5 {[%clk 0:02:59.1]} 3. exd5 {[%clk 0:02:55]} 3... Nf6 {[%clk 0:02:59.3]}
4. d4 {[%clk 0:02:53.4]} 4... cxd5 {[%clk 0:02:59.6]} 5. Nc3 {[%clk 0:02:53.4]}
5... e6 {[%clk 0:02:59.9]} 6. Nf3 {[%clk 0:02:53.3]} 6... Be7 {[%clk 0:02:59.6]}
7. cxd5 {[%clk 0:02:52.3]} 7... Nxd5 {[%clk 0:02:58.7]} 8. Bd3 {[%clk
0:02:52.8]} 8... Nf6 {[%clk 0:02:58.7]} 9. O-O {[%clk 0:02:52.3]} 9... O-O
{[%clk 0:02:59]} 10. Re1 {[%clk 0:02:51.7]} 10... Nc6 {[%clk 0:02:59.2]} 11. a3
{[%clk 0:02:52.1]} 11... b6 {[%clk 0:02:59.5]} 12. Bg5 {[%clk 0:02:51.9]} 12...
Bb7 {[%clk 0:02:59.6]} 13. Bc2 {[%clk 0:02:52.4]} 13... Qd6 {[%clk 0:02:59.7]}
14. Qd3 {[%clk 0:02:52.1]} 14... g6 {[%clk 0:02:59.6]} 15. Rad1 {[%clk
0:02:21.9]} 15... Rad8 {[%clk 0:02:42.3]} 16. h4 {[%clk 0:02:17.4]} 16... Ng4
{[%clk 0:02:42]} 17. d5 {[%clk 0:01:52.8]} 17... Bxg5 {[%clk 0:02:40.4]} 18.
hxg5 {[%clk 0:01:52.1]} 18... Qc5 {[%clk 0:02:18.7]} 19. Ne4 {[%clk 0:01:12.8]}
19... Qxd5 {[%clk 0:02:12.5]} 20. Qc3 {[%clk 0:00:37.7]} 20... Qb5 {[%clk
0:01:46.7]} 21. Nd6 {[%clk 0:00:31.7]} 21... Rxd6 {[%clk 0:01:44.3]} 22. Rxd6
{[%clk 0:00:32.6]} 22... Rc8 {[%clk 0:01:36.3]} 23. Red1 {[%clk 0:00:27.2]}
23... Qc5 {[%clk 0:01:05.9]} 24. Qxc5 {[%clk 0:00:24.7]} 24... bxc5 {[%clk
0:01:06.8]} 25. Be4 {[%clk 0:00:24.2]} 25... Kg7 {[%clk 0:00:47.6]} 26. Rc1
{[%clk 0:00:19.9]} 26... Na5 {[%clk 0:00:31]} 27. Bxb7 {[%clk 0:00:19.3]} 27...
Nxb7 {[%clk 0:00:31.9]} 28. Rd7 {[%clk 0:00:18.8]} 28... Rb8 {[%clk 0:00:32.5]}
29. b4 {[%clk 0:00:16.8]} 29... cxb4 {[%clk 0:00:31]} 30. axb4 {[%clk
0:00:17.3]} 30... Nd8 {[%clk 0:00:24.8]} 31. b5 {[%clk 0:00:13.1]} 31... h6
{[%clk 0:00:22.6]} 32. Rcc7 {[%clk 0:00:11.5]} 32... Rxb5 {[%clk 0:00:18.5]} 33.
g3 {[%clk 0:00:08.3]} 33... Rb8 {[%clk 0:00:18.5]} 34. Rxa7 {[%clk 0:00:06]}
34... hxg5 {[%clk 0:00:16.2]} 35. Nxg5 {[%clk 0:00:06.1]} 35... Ne5 {[%clk
0:00:17]} 36. Rdc7 {[%clk 0:00:05.8]} 36... Kf6 {[%clk 0:00:16]} 37. f4 {[%clk
0:00:05.1]} 37... Kf5 {[%clk 0:00:10.6]} 38. Kf2 {[%clk 0:00:03.7]} 38... Rb2+
{[%clk 0:00:09.7]} 39. Ke1 {[%clk 0:00:03.6]} 39... Nd3+ {[%clk 0:00:09]} 40.
Kd1 {[%clk 0:00:03.9]} 40... Kg4 {[%clk 0:00:08.8]} 41. Nxf7 {[%clk 0:00:03.1]}
41... Nxf7 {[%clk 0:00:08.3]} 42. Rxf7 {[%clk 0:00:03.4]} 42... Kf3 {[%clk
0:00:08.7]} 43. Rfd7 {[%clk 0:00:02.7]} 43... Ke3 {[%clk 0:00:08.1]} 44. Rxd3+
{[%clk 0:00:03.2]} 44... Kxd3 {[%clk 0:00:08.6]} 45. Rd7+ {[%clk 0:00:02.6]}
45... Ke4 {[%clk 0:00:08.1]} 46. Rd6 {[%clk 0:00:03.5]} 46... Kf5 {[%clk
0:00:08.2]} 47. Ra6 {[%clk 0:00:03.1]} 47... Rb3 {[%clk 0:00:06.6]} 48. Ra5+
{[%clk 0:00:02.1]} 48... Kf6 {[%clk 0:00:06]} 49. Rg5 {[%clk 0:00:03]} 1-0

[Event "Late-Titled-Tuesday-Blitz-March-19-2024"]
[Site "Chess.com"]
[Date "2024.03.19"]
[Round "6"]
[White "GotCheeseCheckers"]
[Black "gympod"]
[Result "0-1"]
[WhiteElo "2515"]
[BlackElo "2393"]
[TimeControl "180+1"]
[EndTime "15:06:01 PDT"]
[Termination "gympod won by resignation"]

1. e4 {[%clk 0:02:58]} 1... c5 {[%clk 0:03:00]} 2. Nf3 {[%clk 0:02:57.6]} 2...
d6 {[%clk 0:03:00.7]} 3. Bb5+ {[%clk 0:02:58]} 3... Bd7 {[%clk 0:03:00.8]} 4. a4
{[%clk 0:02:57.9]} 4... Nf6 {[%clk 0:03:00.6]} 5. Nc3 {[%clk 0:02:54.2]} 5...
Nc6 {[%clk 0:02:53.3]} 6. O-O {[%clk 0:02:53.8]} 6... g6 {[%clk 0:02:53.4]} 7.
d4 {[%clk 0:02:45.6]} 7... cxd4 {[%clk 0:02:51.5]} 8. Nxd4 {[%clk 0:02:46.5]}
8... Bg7 {[%clk 0:02:50.4]} 9. Nxc6 {[%clk 0:02:45.7]} 9... bxc6 {[%clk
0:02:50.5]} 10. Bc4 {[%clk 0:02:43.5]} 10... O-O {[%clk 0:02:48.1]} 11. Bg5
{[%clk 0:02:33.7]} 11... Qa5 {[%clk 0:02:45.3]} 12. Bf4 {[%clk 0:02:28.4]} 12...
Bg4 {[%clk 0:02:23.2]} 13. Qd3 {[%clk 0:01:59.1]} 13... Rab8 {[%clk 0:02:21.5]}
14. Rfe1 {[%clk 0:01:33]} 14... Nd7 {[%clk 0:02:14.5]} 15. Bb3 {[%clk
0:01:28.6]} 15... Nc5 {[%clk 0:02:10.3]} 16. Qg3 {[%clk 0:01:17]} 16... Nxb3
{[%clk 0:02:07]} 17. cxb3 {[%clk 0:01:17.9]} 17... Be6 {[%clk 0:02:04.5]} 18. e5
{[%clk 0:01:18.4]} 18... d5 {[%clk 0:01:53.2]} 19. Ra3 {[%clk 0:01:06.3]} 19...
Rb4 {[%clk 0:01:42.7]} 20. Bd2 {[%clk 0:01:03.5]} 20... Rb7 {[%clk 0:01:14.4]}
21. Ne4 {[%clk 0:00:53.6]} 21... Qb6 {[%clk 0:01:05.7]} 22. Ng5 {[%clk
0:00:47.7]} 22... Bf5 {[%clk 0:01:06.1]} 23. h4 {[%clk 0:00:38.9]} 23... Rfb8
{[%clk 0:00:55.6]} 24. h5 {[%clk 0:00:34.6]} 24... Qd4 {[%clk 0:00:50.2]} 25.
Bc3 {[%clk 0:00:25]} 25... Qg4 {[%clk 0:00:31.5]} 26. Qxg4 {[%clk 0:00:22.2]}
26... Bxg4 {[%clk 0:00:32.4]} 27. hxg6 {[%clk 0:00:23.1]} 27... hxg6 {[%clk
0:00:32.2]} 28. b4 {[%clk 0:00:20.9]} 28... e6 {[%clk 0:00:23.6]} 29. f3 {[%clk
0:00:12.5]} 29... Bf5 {[%clk 0:00:22.8]} 30. Rd1 {[%clk 0:00:12.3]} 30... Bh6
{[%clk 0:00:20.3]} 31. f4 {[%clk 0:00:11.4]} 31... Bf8 {[%clk 0:00:17.4]} 32.
Nf3 {[%clk 0:00:05.3]} 32... Bxb4 {[%clk 0:00:17.3]} 33. Rd4 {[%clk 0:00:05.8]}
33... Bxa3 {[%clk 0:00:17.3]} 34. bxa3 {[%clk 0:00:06.5]} 34... Rb3 {[%clk
0:00:17.2]} 35. Bb4 {[%clk 0:00:06.8]} 35... a5 {[%clk 0:00:14.5]} 36. Bd6
{[%clk 0:00:05.5]} 36... Rc8 {[%clk 0:00:14]} 37. Kh2 {[%clk 0:00:05.9]} 37...
c5 {[%clk 0:00:14.4]} 38. Rd1 {[%clk 0:00:06.7]} 38... c4 {[%clk 0:00:14.8]} 39.
Nd4 {[%clk 0:00:07.2]} 39... Rxa3 {[%clk 0:00:14]} 40. Nb5 {[%clk 0:00:07.7]}
40... Rxa4 {[%clk 0:00:13.5]} 41. Nc3 {[%clk 0:00:07.8]} 41... Rb4 {[%clk
0:00:12.5]} 42. Ra1 {[%clk 0:00:06.2]} 42... Rb3 {[%clk 0:00:12.6]} 43. Ne2
{[%clk 0:00:06.9]} 43... c3 {[%clk 0:00:12.5]} 44. Nd4 {[%clk 0:00:07.5]} 44...
Rb2 {[%clk 0:00:12.3]} 45. Ba3 {[%clk 0:00:08.1]} 45... Be4 {[%clk 0:00:11.7]}
46. Kh3 {[%clk 0:00:05.5]} 46... Rxg2 {[%clk 0:00:11.7]} 47. Be7 {[%clk
0:00:05.7]} 47... Rc2 {[%clk 0:00:11.4]} 48. Kg3 {[%clk 0:00:05.1]} 48... Rd2
{[%clk 0:00:11.3]} 49. Bf6 {[%clk 0:00:05.7]} 49... Rxd4 {[%clk 0:00:11.1]} 50.
Kf2 {[%clk 0:00:06.3]} 50... Rd2+ {[%clk 0:00:11]} 51. Ke3 {[%clk 0:00:06.8]}
51... Rh2 {[%clk 0:00:10.9]} 52. Rc1 {[%clk 0:00:04.2]} 52... c2 {[%clk
0:00:10.9]} 53. Kd4 {[%clk 0:00:04.9]} 53... Rd2+ {[%clk 0:00:11.1]} 54. Ke3
{[%clk 0:00:05.2]} 54... Rd1 {[%clk 0:00:11.6]} 0-1

[Event "Late-Titled-Tuesday-Blitz-March-19-2024"]
[Site "Chess.com"]
[Date "2024.03.19"]
[Round "6"]
[White "Kombinator01"]
[Black "Revan_2002"]
[Result "1-0"]
[WhiteElo "2431"]
[BlackElo "2547"]
[TimeControl "180+1"]
[EndTime "15:06:04 PDT"]
[Termination "Kombinator01 won by resignation"]

1. e4 {[%clk 0:02:59.1]} 1... e5 {[%clk 0:02:55.6]} 2. Nf3 {[%clk 0:02:56.7]}
2... Nc6 {[%clk 0:02:55.9]} 3. Bb5 {[%clk 0:02:54.4]} 3... a6 {[%clk 0:02:50.1]}
4. Ba4 {[%clk 0:02:52.3]} 4... Nf6 {[%clk 0:02:50.2]} 5. d4 {[%clk 0:02:49.7]}
5... exd4 {[%clk 0:02:45.2]} 6. O-O {[%clk 0:02:46.8]} 6... Be7 {[%clk
0:02:43.7]} 7. Re1 {[%clk 0:02:45.5]} 7... O-O {[%clk 0:02:36.8]} 8. e5 {[%clk
0:02:44]} 8... Nd5 {[%clk 0:02:37.3]} 9. Nxd4 {[%clk 0:02:43.5]} 9... Nb6 {[%clk
0:02:28.6]} 10. Bb3 {[%clk 0:02:42.4]} 10... Nxd4 {[%clk 0:02:25.7]} 11. Qxd4
{[%clk 0:02:42]} 11... d5 {[%clk 0:02:26.3]} 12. exd6 {[%clk 0:02:40]} 12...
Qxd6 {[%clk 0:02:21.3]} 13. Be3 {[%clk 0:02:30]} 13... a5 {[%clk 0:02:15.4]} 14.
a4 {[%clk 0:02:23]} 14... Bf5 {[%clk 0:02:14.7]} 15. Nc3 {[%clk 0:02:20.4]}
15... Qg6 {[%clk 0:02:11.2]} 16. Bf4 {[%clk 0:02:10.6]} 16... Rad8 {[%clk
0:02:06.2]} 17. Qe3 {[%clk 0:02:03.7]} 17... Bd6 {[%clk 0:02:06.6]} 18. Bxd6
{[%clk 0:01:54.8]} 18... Rxd6 {[%clk 0:02:07.5]} 19. Nb5 {[%clk 0:01:54.7]}
19... Rd7 {[%clk 0:02:04.9]} 20. c3 {[%clk 0:01:53.8]} 20... Nc8 {[%clk
0:01:56.8]} 21. Nd4 {[%clk 0:01:43.1]} 21... Be4 {[%clk 0:01:51]} 22. Qxe4
{[%clk 0:01:40.8]} 22... Qb6 {[%clk 0:01:46.8]} 23. Qc2 {[%clk 0:01:20.6]} 23...
c5 {[%clk 0:01:40.5]} 24. Nf3 {[%clk 0:01:16.3]} 24... Qf6 {[%clk 0:01:31.4]}
25. Rad1 {[%clk 0:01:14.5]} 25... Rc7 {[%clk 0:01:29.4]} 26. Bd5 {[%clk
0:01:09.4]} 26... Nd6 {[%clk 0:01:25.2]} 27. c4 {[%clk 0:01:08.7]} 27... g6
{[%clk 0:01:23.7]} 28. Qc3 {[%clk 0:01:06.4]} 28... Qf4 {[%clk 0:01:17.5]} 29.
Qe5 {[%clk 0:01:04.1]} 29... Qxe5 {[%clk 0:01:16.6]} 30. Rxe5 {[%clk 0:01:05]}
30... Nf5 {[%clk 0:01:17.1]} 31. g4 {[%clk 0:01:00.3]} 31... Nd6 {[%clk
0:01:14.7]} 32. Rde1 {[%clk 0:00:56.9]} 32... Kg7 {[%clk 0:01:03.3]} 33. Re7
{[%clk 0:00:52.7]} 33... Rxe7 {[%clk 0:01:02.5]} 34. Rxe7 {[%clk 0:00:53.6]}
34... Rd8 {[%clk 0:01:00.9]} 35. Rc7 {[%clk 0:00:40]} 35... Re8 {[%clk
0:00:53.4]} 36. Bxf7 {[%clk 0:00:27.5]} 36... Nxf7 {[%clk 0:00:34.1]} 37. Ng5
{[%clk 0:00:25.8]} 37... Kf6 {[%clk 0:00:32.6]} 38. Nxf7 {[%clk 0:00:23.6]}
38... Re4 {[%clk 0:00:31.6]} 39. h3 {[%clk 0:00:13.8]} 39... Rxc4 {[%clk
0:00:32]} 40. Rxb7 {[%clk 0:00:13.9]} 40... Rxa4 {[%clk 0:00:24.6]} 41. Kg2
{[%clk 0:00:12.9]} 41... Rd4 {[%clk 0:00:12.7]} 42. Kg3 {[%clk 0:00:11.4]} 42...
a4 {[%clk 0:00:12.1]} 43. f4 {[%clk 0:00:11.6]} 43... Rb4 {[%clk 0:00:10.6]} 44.
Rc7 {[%clk 0:00:09.7]} 44... Rxb2 {[%clk 0:00:05.5]} 45. Ng5 {[%clk 0:00:10.2]}
45... Rb3+ {[%clk 0:00:05.5]} 46. Kh4 {[%clk 0:00:10.4]} 1-0

[Event "Late-Titled-Tuesday-Blitz-March-19-2024"]
[Site "Chess.com"]
[Date "2024.03.19"]
[Round "6"]
[White "FabianoCaruana"]
[Black "dretch"]
[Result "1/2-1/2"]
[WhiteElo "3080"]
[BlackElo "2902"]
[TimeControl "180+1"]
[EndTime "15:06:05 PDT"]
[Termination "Game drawn by repetition"]

1. e4 {[%clk 0:03:00.9]} 1... e6 {[%clk 0:03:00.1]} 2. d4 {[%clk 0:03:00.1]}
2... d5 {[%clk 0:03:00.6]} 3. Nc3 {[%clk 0:02:59.5]} 3... Nf6 {[%clk 0:03:00.5]}
4. e5 {[%clk 0:02:59.8]} 4... Nfd7 {[%clk 0:03:00.5]} 5. f4 {[%clk 0:03:00.4]}
5... c5 {[%clk 0:03:00.9]} 6. Nf3 {[%clk 0:03:01.1]} 6... Nc6 {[%clk 0:03:01.1]}
7. Ne2 {[%clk 0:03:00.4]} 7... b5 {[%clk 0:02:59.5]} 8. Be3 {[%clk 0:02:57.1]}
8... b4 {[%clk 0:02:57.4]} 9. h4 {[%clk 0:02:55.2]} 9... Ba6 {[%clk 0:02:55.8]}
10. h5 {[%clk 0:02:52.7]} 10... Qb6 {[%clk 0:02:51.5]} 11. c3 {[%clk 0:02:43]}
11... bxc3 {[%clk 0:02:50]} 12. bxc3 {[%clk 0:02:43.9]} 12... Rb8 {[%clk
0:02:48.9]} 13. Kf2 {[%clk 0:02:37.6]} 13... Qb2 {[%clk 0:02:43]} 14. g4 {[%clk
0:02:16.9]} 14... cxd4 {[%clk 0:02:33.2]} 15. cxd4 {[%clk 0:02:16.8]} 15... Ba3
{[%clk 0:02:28]} 16. Kg3 {[%clk 0:02:11.2]} 16... O-O {[%clk 0:02:23.1]} 17. Rh2
{[%clk 0:02:10.2]} 17... f6 {[%clk 0:02:13.2]} 18. Rc1 {[%clk 0:01:53.3]} 18...
Qb6 {[%clk 0:02:04.6]} 19. Rc3 {[%clk 0:01:50.7]} 19... Bb4 {[%clk 0:02:03.4]}
20. Rb3 {[%clk 0:01:50.9]} 20... Bc4 {[%clk 0:02:03.7]} 21. h6 {[%clk
0:01:17.4]} 21... Bxb3 {[%clk 0:01:51]} 22. axb3 {[%clk 0:01:18.3]} 22... g6
{[%clk 0:01:50.9]} 23. exf6 {[%clk 0:01:03.2]} 23... Nxf6 {[%clk 0:01:51.5]} 24.
Ng5 {[%clk 0:01:03.3]} 24... e5 {[%clk 0:01:52.1]} 25. Rf2 {[%clk 0:00:49.6]}
25... Rbe8 {[%clk 0:01:40.2]} 26. Bg2 {[%clk 0:00:23.8]} 26... exd4 {[%clk
0:01:38.3]} 27. Bxd4 {[%clk 0:00:24.7]} 27... Nxd4 {[%clk 0:01:33]} 28. Nxd4
{[%clk 0:00:25.6]} 28... Bc5 {[%clk 0:01:23.5]} 29. Rd2 {[%clk 0:00:21.8]} 29...
Re3+ {[%clk 0:01:23.4]} 30. Kh4 {[%clk 0:00:14.8]} 30... Ne4 {[%clk 0:01:17]}
31. Bxe4 {[%clk 0:00:12.7]} 31... dxe4 {[%clk 0:01:16.9]} 32. Nde6 {[%clk
0:00:12.6]} 32... Rc3 {[%clk 0:00:58.4]} 33. Qe2 {[%clk 0:00:04.2]} 33... Be3
{[%clk 0:00:53.2]} 34. Ra2 {[%clk 0:00:03.4]} 34... Bxf4 {[%clk 0:00:50.4]} 35.
Nxf4 {[%clk 0:00:02.7]} 35... Rxf4 {[%clk 0:00:50.5]} 36. Qd2 {[%clk 0:00:02.5]}
36... Rcf3 {[%clk 0:00:38.9]} 37. Qd5+ {[%clk 0:00:02.2]} 37... Rf7 {[%clk
0:00:39]} 38. Nxf7 {[%clk 0:00:01.8]} 38... Rxf7 {[%clk 0:00:35.2]} 39. Qxe4
{[%clk 0:00:02.3]} 39... Qd8+ {[%clk 0:00:30.7]} 40. g5 {[%clk 0:00:02]} 40...
Rf5 {[%clk 0:00:23.2]} 41. Rg2 {[%clk 0:00:02.1]} 41... Qd6 {[%clk 0:00:16.6]}
42. Qe8+ {[%clk 0:00:01.1]} 42... Rf8 {[%clk 0:00:16.2]} 43. Qe3 {[%clk
0:00:01.4]} 43... Rf4+ {[%clk 0:00:13.2]} 44. Rg4 {[%clk 0:00:01.6]} 44... Rf8
{[%clk 0:00:10.3]} 45. Rg3 {[%clk 0:00:02]} 45... Qb4+ {[%clk 0:00:09.3]} 46.
Kh3 {[%clk 0:00:02.3]} 46... Qd6 {[%clk 0:00:09.6]} 47. Qe4 {[%clk 0:00:02.6]}
47... Qd7+ {[%clk 0:00:09.6]} 48. Qg4 {[%clk 0:00:02.8]} 48... Rf5 {[%clk
0:00:09.4]} 49. Re3 {[%clk 0:00:02.7]} 49... a5 {[%clk 0:00:09.3]} 50. Qc4+
{[%clk 0:00:02.8]} 50... Rd5+ {[%clk 0:00:08.4]} 51. Qg4 {[%clk 0:00:02.3]}
51... Rf5 {[%clk 0:00:05.6]} 52. Qc4+ {[%clk 0:00:02.4]} 52... Rd5+ {[%clk
0:00:05.6]} 53. Qg4 {[%clk 0:00:03.1]} 53... Rf5 {[%clk 0:00:04]} 1/2-1/2